bitfinex-derivatives/quotes_ETHF0:USTF0_20250107
["timestamp","ask_amount","ask_price","bid_price","bid_amount"]
[1736288693245,0.29553,3384.6,3384.4,8.05824]
[1736288693846,9.37,3384.8,3384.4,8.05824]
[1736288694045,0.29553,3384.6,3384.4,8.05824]
[1736288694744,0.29553,3384.6,3384.4,7.7627]
[1736288694946,0.29553,3384.5,3384.4,4.5549]
[1736288695546,0.29553,3384.5,3384.4,0.29554]
[1736288695745,0.29554,3384.5,3384.4,0.29554]
[1736288695946,0.29554,3384.4,3384.3,0.29555]
[1736288696846,0.29554,3384.4,3384.2,0.29555]
[1736288697241,0.29554,3384.4,3384.3,0.29555]
[1736288697842,0.29554,3384.4,3384.2,0.29555]
[1736288698345,0.29554,3384.4,3384.0,3.2078]
[1736288698544,9.37,3384.8,3384.0,3.2078]
[1736288698752,0.7388,3384.7,3384.1,0.29556]
[1736288699051,4.6027,3384.6,3384.0,3.2078]
[1736288699241,0.29556,3384.2,3384.1,0.29557]
[1736288699539,0.29555,3384.3,3384.1,0.29557]
[1736288699741,4.6027,3384.6,3384.1,0.29557]
[1736288699949,0.29555,3384.3,3384.1,0.29557]
[1736288700149,0.29555,3384.3,3384.0,3.2078]
[1736288700347,9.37,3384.8,3384.0,3.2078]
[1736288700549,3.47112043,3385.4,3384.4,3.2078]
[1736288700755,3.2078,3385.4,3385.3,0.29546]
[1736288701147,3.2078,3386.0,3385.3,3.2078]
[1736288701351,0.29542,3385.8,3385.3,7.5793]
[1736288701853,0.29542,3385.8,3385.5,0.29544]
[1736288702050,3.2078,3386.0,3385.3,7.5793]
[1736288702349,0.29542,3385.8,3385.3,7.5793]
[1736288702556,0.29542,3385.8,3385.5,0.29544]
[1736288703856,0.29542,3385.8,3385.6,0.29543]
[1736288704150,3.2078,3386.0,3385.3,7.5793]
[1736288704355,0.29541,3385.9,3385.7,0.29543]
[1736288705152,3.2078,3386.0,3385.7,0.29543]
[1736288705353,0.29542,3385.8,3385.6,0.29543]
[1736288706255,3.2078,3386.0,3385.3,7.5793]
[1736288706449,0.29542,3385.8,3385.7,0.29543]
[1736288706850,0.29541,3385.9,3385.8,0.29541]
[1736288707054,0.29541,3385.9,3385.4,0.73864]
[1736288707355,3.2078,3386.0,3385.7,0.29542]
[1736288707356,0.29542,3385.8,3385.7,0.29542]
[1736288707851,3.2078,3386.0,3385.8,0.29542]
[1736288708053,3.2078,3386.0,3385.9,0.29541]
[1736288710458,5.80192741,3386.4,3386.2,0.29538]
[1736288710858,5.80192741,3386.4,3386.3,0.29537]
[1736288710859,3.2078,3386.4,3386.3,0.29537]
[1736288714761,3.2078,3386.5,3386.1,0.29539]
[1736288715060,3.2078,3386.5,3386.4,0.29537]
[1736288717457,3.50316,3386.5,3386.4,0.29537]
[1736288717967,3.2078,3386.5,3386.4,0.29537]
[1736288718467,5.50655741,3386.5,3386.4,0.29537]
[1736288719364,5.80191741,3386.5,3386.4,0.29537]
[1736288719866,6.95129611,3386.5,3386.4,0.29537]
[1736288721466,3.50316,3386.5,3386.4,0.29537]
[1736288723272,3.2078,3386.5,3386.4,0.29537]
[1736288723471,3.50316,3386.5,3386.4,0.29537]
[1736288724775,6.97287556,3386.5,3386.4,0.29537]
[1736288727375,3.50316,3386.5,3386.4,0.29537]
[1736288728273,3.2078,3386.5,3386.4,0.29537]
[1736288728567,8.15311556,3386.6,3386.5,0.29536]
[1736288728775,4.6834,3386.6,3386.5,2.67669775]
[1736288729772,11.0516755,3386.6,3385.6,3.2078]
[1736288730069,0.29546,3385.3,3385.2,4.60666331]
[1736288730670,3.50326,3385.3,3385.2,4.60666331]
[1736288731271,0.29547,3385.2,3384.9,2.38133775]
[1736288731572,5.51979398,3385.3,3384.9,2.38133775]
[1736288731965,0.29549,3385.0,3384.9,2.38133775]
[1736288732272,0.29549,3385.1,3384.9,2.38133775]
[1736288732868,0.29549,3385.0,3384.9,2.38133775]
[1736288733572,0.29549,3385.0,3384.8,4.7065]
[1736288733768,2.31199398,3385.2,3384.8,4.7065]
[1736288733769,0.2955,3384.9,3384.8,4.7065]
[1736288735670,3.05068398,3385.2,3384.6,4.361]
[1736288735873,0.29551,3384.7,3384.6,4.361]
[1736288736375,0.29553,3384.5,3384.4,4.771]
[1736288736977,0.29557,3384.1,3384.0,4.4589]
[1736288737278,0.29556,3384.2,3384.0,9.1191]
[1736288739179,0.29554,3384.4,3384.0,9.1191]
[1736288739381,0.29556,3384.3,3384.0,9.1191]
[1736288740278,5.51979398,3384.5,3384.0,9.1191]
[1736288740482,5.51979398,3384.5,3384.2,2.38133775]
[1736288740780,2.31199398,3384.5,3384.4,0.29554]
[1736288741682,2.31199398,3384.5,3384.2,2.38133775]
[1736288741683,3.5033,3384.9,3384.2,2.38133775]
[1736288741885,3.5033,3384.9,3384.5,2.67685775]
[1736288742077,3.2078,3384.9,3384.6,4.5923]
[1736288742282,3.2078,3384.9,3384.7,4.77841]
[1736288742977,3.2078,3384.9,3384.7,4.4829]
[1736288743381,3.2078,3384.9,3384.7,4.77841]
[1736288744778,3.2078,3384.9,3384.8,0.29551]
[1736288745278,3.2078,3384.9,3384.7,4.4829]
[1736288745675,3.2078,3384.9,3384.8,0.29551]
[1736288745875,3.2078,3384.9,3384.7,4.77841]
[1736288746177,3.2078,3384.9,3384.7,4.4829]
[1736288746378,3.2078,3384.9,3384.8,0.29551]
[1736288751086,2.60747398,3385.2,3384.7,4.4829]
[1736288751276,5.81527398,3385.2,3384.9,0.29549]
[1736288752186,0.29548,3385.1,3384.9,0.29549]
[1736288753685,3.50328,3385.2,3384.9,0.29549]
[1736288753877,0.29548,3385.1,3384.9,0.29549]
[1736288755784,0.29548,3385.1,3384.7,4.4829]
[1736288755984,0.29548,3385.1,3385.0,0.29549]
[1736288759691,2.60747398,3385.1,3385.0,0.29549]
[1736288760678,0.29548,3385.1,3385.0,0.29549]
[1736288761781,2.31199398,3385.2,3385.1,0.29548]
[1736288762783,0.58447419,3385.2,3385.1,0.29548]
[1736288763692,7.5096,3385.3,3385.0,0.23353646]
[1736288763892,7.5096,3385.3,3385.2,0.29547]
[1736288764480,3.46971556,3385.6,3385.2,2.38133775]
[1736288764689,8.00961556,3385.6,3385.5,0.29544]
[1736288765189,4.5399,3385.6,3385.5,0.29544]
[1736288765389,4.5399,3385.6,3385.5,2.67677775]
[1736288766691,7.80531482,3385.9,3385.8,0.29542]
[1736288766692,3.2078,3385.9,3385.8,0.29542]
[1736288766888,7.7477,3385.9,3385.8,0.29542]
[1736288770897,8.04311,3385.9,3385.5,2.38133775]
[1736288771198,8.04311,3385.9,3385.8,0.29542]
[1736288773294,4.5399,3385.9,3385.8,0.29542]
[1736288775501,8.00961556,3385.9,3385.8,0.29542]
[1736288777494,8.00961556,3385.9,3385.5,2.38133775]
[1736288777802,8.00961556,3385.9,3385.6,0.29544]
[1736288778202,0.29543,3385.7,3385.6,0.29544]
[1736288778801,8.00961556,3385.9,3385.5,2.38133775]
[1736288779102,0.29545,3385.5,3385.3,0.29546]
[1736288779304,9.2964,3385.4,3385.3,0.29546]
[1736288779503,9.2964,3385.4,3385.2,2.38133775]
[1736288779804,9.2964,3385.4,3385.3,0.29546]
[1736288780602,9.59185,3385.4,3385.3,0.29546]
[1736288782099,9.2964,3385.4,3385.3,0.29546]
[1736288783407,12.76611556,3385.4,3385.3,0.29546]
[1736288787008,9.2964,3385.4,3385.3,0.29546]
[1736288789305,9.2964,3385.4,3385.3,1.34283936]
[1736288793116,13.89391482,3385.4,3385.3,1.34283936]
[1736288796013,9.2964,3385.4,3385.3,1.34283936]
[1736288797913,0.73866,3385.3,3384.9,3.2078]
[1736288798218,0.29553,3384.5,3384.4,9.21332663]
[1736288798411,4.55070936,3384.5,3384.4,9.21332663]
[1736288798615,0.29559,3383.8,3383.7,13.81998995]
[1736288798815,4.55076936,3383.8,3383.7,10.77248995]
[1736288799014,0.2956,3383.7,3383.6,9.4343635]
[1736288799214,0.2956,3383.7,3383.6,4.3168635]
[1736288799419,0.2956,3383.7,3382.8,0.29567]
[1736288799420,7.38669744,3383.7,3382.6,4.6113]
[1736288799716,0.29567,3382.9,3382.8,0.29568]
[1736288800408,0.29567,3382.9,3382.6,4.6113]
[1736288800612,0.44340991,3382.9,3382.6,4.6113]
[1736288800814,4.93889412,3382.9,3382.6,4.6113]
[1736288801116,4.93889412,3382.9,3382.6,4.907]
[1736288801315,4.93889412,3382.9,3382.6,4.90699]
[1736288801516,4.93889412,3382.9,3382.7,0.29569]
[1736288801925,4.93889412,3382.9,3382.6,4.90699]
[1736288802138,0.44340991,3382.8,3382.6,4.90699]
[1736288802322,0.44340991,3382.8,3382.6,4.6113]
[1736288802625,0.44340991,3382.8,3382.7,0.29569]
[1736288803132,0.44340991,3382.8,3382.6,4.6113]
[1736288803325,0.44340991,3382.8,3382.6,4.90699]
[1736288803526,0.44340991,3382.8,3382.6,4.6113]
[1736288803730,0.44340991,3382.8,3382.7,0.29569]
[1736288803932,0.44340991,3382.8,3382.6,4.90699]
[1736288804231,0.44340991,3382.8,3382.6,4.6113]
[1736288804428,3.90969759,3382.7,3382.6,4.6113]
[1736288804622,4.20538759,3382.7,3382.6,4.6113]
[1736288805027,3.90969759,3382.7,3382.2,3.2078]
[1736288805324,3.90969759,3382.7,3381.3,4.86026763]
[1736288805325,0.29573,3382.2,3381.8,0.29576]
[1736288805530,3.50353,3382.2,3381.8,0.29576]
[1736288806434,3.2078,3382.2,3381.6,4.3984]
[1736288806625,3.46628768,3382.3,3381.6,6.78509744]
[1736288806835,3.46628768,3382.3,3382.1,0.29574]
[1736288807028,3.46628768,3382.3,3382.0,0.29575]
[1736288807227,3.46628768,3382.4,3382.0,0.29575]
[1736288808232,3.46628768,3382.4,3381.4,12.3655]
[1736288808233,5.59449744,3382.2,3381.4,3.2078]
[1736288808424,0.29577,3381.8,3381.4,3.2078]
[1736288808631,0.29579,3381.6,3381.4,3.2078]
[1736288809035,3.2078,3381.5,3381.1,4.4219]
[1736288809537,0.2958,3381.4,3381.1,4.4219]
[1736288809736,3.2078,3381.5,3381.1,4.4219]
[1736288809737,3.5036,3381.5,3381.1,4.71773]
[1736288810139,3.2078,3381.5,3380.9,4.4675]
[1736288810337,0.29582,3381.2,3380.9,4.4675]
[1736288810528,3.2078,3381.5,3380.9,4.4675]
[1736288810731,0.29583,3381.2,3380.9,4.4675]
[1736288810932,2.38669744,3381.3,3380.9,4.4675]
[1736288811136,0.29582,3381.2,3380.9,4.4675]
[1736288812240,0.29583,3381.2,3380.9,4.4675]
[1736288812538,0.29583,3381.2,3380.7,0.29586]
[1736288813034,0.29586,3380.8,3380.0,3.2078]
[1736288813338,2.38669744,3381.0,3380.0,7.5293]
[1736288813532,0.29585,3380.9,3380.5,0.29588]
[1736288813733,3.50363,3381.1,3380.0,10.14876769]
[1736288813931,1.284,3381.5,3380.6,2.38669744]
[1736288813932,3.2078,3381.5,3380.6,2.38669744]
[1736288814133,3.2078,3381.5,3381.4,0.2958]
[1736288818835,3.2078,3382.0,3381.2,2.38669744]
[1736288819035,3.2078,3382.0,3381.6,0.29578]
[1736288819235,0.29576,3381.9,3381.6,0.29578]
[1736288819432,0.29576,3381.9,3381.2,2.38669744]
[1736288819433,0.29576,3381.9,3381.7,0.29578]
[1736288819843,3.2078,3382.0,3381.7,0.29578]
[1736288820046,3.50355,3382.0,3381.8,0.29577]
[1736288820241,3.2078,3382.0,3381.2,6.57011156]
[1736288820446,3.2078,3382.0,3381.9,0.29576]
[1736288823350,3.50354,3382.1,3381.6,0.29579]
[1736288823648,3.50354,3382.1,3382.0,0.29575]
[1736288824540,3.2078,3382.1,3381.5,4.5302]
[1736288824746,0.29576,3381.9,3381.5,4.5302]
[1736288825049,0.29575,3382.0,3381.9,0.29576]
[1736288830348,3.2078,3382.1,3381.5,5.26968]
[1736288830554,3.50355,3382.1,3382.0,0.29575]
[1736288831147,0.29577,3381.8,3381.7,4.3279]
[1736288831353,5.59449744,3382.1,3380.8,5.59449744]
[1736288831551,0.29582,3381.2,3381.1,4.94612]
[1736288832052,0.29582,3381.2,3381.1,4.6503]
[1736288832358,3.50362,3381.2,3381.1,4.6503]
[1736288834458,0.29585,3380.9,3380.8,8.7984]
[1736288835159,6.33407744,3381.2,3380.6,0.29587]
[1736288835359,0.29588,3380.6,3380.5,0.29588]
[1736288835664,0.29588,3380.6,3380.3,5.9846]
[1736288835857,0.29588,3380.6,3380.4,0.29589]
[1736288836360,10.72947744,3381.2,3380.3,6.28049]
[1736288836559,0.73958,3381.1,3380.3,5.9846]
[1736288836759,0.73958,3381.1,3380.4,0.29588]
[1736288836955,0.29588,3380.6,3380.4,0.29588]
[1736288837261,0.29587,3380.7,3380.5,0.29588]
[1736288837557,0.29587,3380.6,3380.4,0.29589]
[1736288838765,0.29587,3380.7,3380.5,0.29588]
[1736288839062,0.29587,3380.6,3380.3,5.9846]
[1736288839260,3.2078,3380.9,3380.5,0.29588]
[1736288839454,0.29587,3380.7,3380.5,0.29588]
[1736288842255,3.76215768,3380.7,3380.5,0.29588]
[1736288842856,3.46628768,3380.7,3380.6,0.29587]
[1736288843664,0.44387014,3380.6,3380.5,0.29588]
[1736288843856,0.44387014,3380.6,3380.4,0.29588]
[1736288843857,0.73975014,3380.6,3380.4,0.29588]
[1736288844059,0.29589,3380.5,3380.3,6.2805]
[1736288845663,5.07208214,3380.4,3380.3,6.2805]
[1736288846868,5.36797214,3380.4,3380.3,5.9846]
[1736288848558,6.28527146,3380.4,3380.3,5.9846]
[1736288850567,6.28527146,3380.4,3380.3,1.5453324]
[1736288853763,6.28527146,3380.4,3380.3,4.3972324]
[1736288854362,5.98938146,3380.4,3379.7,3.2078]
[1736288854562,0.29594,3379.8,3379.6,0.29595]
[1736288854772,0.29594,3379.8,3379.7,5.7562]
[1736288854964,0.29594,3379.8,3379.7,6.05215]
[1736288855361,0.29594,3379.8,3379.7,5.7562]
[1736288856463,6.28532146,3379.8,3379.7,5.7562]
[1736288857562,6.28532146,3379.8,3379.7,2.9043]
[1736288857868,0.29595,3379.7,3379.6,2.8551]
[1736288859366,12.07842012,3379.7,3379.6,2.8551]
[1736288859868,12.07842012,3379.7,3379.6,3.15106]
[1736288860668,6.28533146,3379.7,3379.6,2.8551]
[1736288861162,5.79308866,3379.8,3379.7,0.29595]
[1736288861163,1.71318866,3379.8,3379.7,0.29595]
[1736288862066,4.63111559,3379.8,3379.7,0.29595]
[1736288863277,4.63111559,3379.9,3379.6,6.0629]
[1736288863468,4.92704559,3379.9,3379.8,0.29594]
[1736288863767,4.63111559,3379.9,3379.6,6.0629]
[1736288863970,0.29595,3379.7,3379.6,6.35886]
[1736288864366,4.63111559,3379.9,3378.8,3.33013]
[1736288864367,0.29602,3379.0,3378.8,3.33013]
[1736288864665,0.29602,3379.0,3378.8,5.84623]
[1736288864860,0.29602,3379.0,3378.8,5.5502]
[1736288865062,3.94776,3379.4,3378.8,5.5502]
[1736288865262,0.29602,3378.9,3378.8,5.5502]
[1736288865463,0.29602,3379.0,3378.8,5.84623]
[1736288865671,0.29602,3379.0,3378.9,2.6204]
[1736288866269,3.76895679,3379.0,3378.9,2.6204]
[1736288870068,3.47293679,3379.0,3378.7,3.2078]
[1736288870273,0.29605,3378.6,3378.5,2.5693]
[1736288870773,5.59449744,3378.6,3378.0,2.5366]
[1736288871067,0.29609,3378.1,3378.0,5.1059]
[1736288877670,0.29615,3377.5,3377.2,3.53064507]
[1736288877871,0.74026,3378.0,3377.3,8.18906]
[1736288878073,0.29615,3377.4,3377.3,7.8929]
[1736288878470,3.50395,3377.4,3377.3,7.8929]
[1736288881275,3.50395,3377.4,3377.3,2.5608]
[1736288886774,0.29617,3377.2,3377.0,5.60618]
[1736288886981,2.30738234,3377.6,3377.0,8.5178]
[1736288887272,2.30738234,3377.6,3377.5,0.29614]
[1736288887679,3.2078,3377.8,3377.7,0.29613]
[1736288887982,2.30738234,3377.9,3377.8,0.29612]
[1736288889284,0.2961,3378.0,3377.8,0.29611]
[1736288889679,0.2961,3378.0,3377.9,0.29611]
[1736288890185,0.29609,3378.2,3378.1,0.29609]
[1736288890587,6.68073679,3378.4,3378.3,0.29607]
[1736288891277,3.47293679,3378.4,3378.3,0.29607]
[1736288891583,3.47293679,3378.4,3378.2,3.2078]
[1736288891584,4.63111559,3378.6,3378.5,0.29606]
[1736288892184,4.63111559,3378.9,3378.8,0.29603]
[1736288893485,2.30830308,3379.1,3378.6,3.2078]
[1736288893685,2.30830308,3379.1,3379.0,0.29601]
[1736288893884,2.60430308,3379.1,3379.0,0.29601]
[1736288894086,2.30830308,3379.1,3379.0,0.29601]
[1736288894286,2.60430308,3379.1,3379.0,0.29601]
[1736288894789,0.296,3379.2,3379.1,0.296]
[1736288895486,0.29601,3379.1,3378.7,2.5624]
[1736288895693,0.29601,3379.1,3379.0,0.29601]
[1736288897393,0.74010458,3379.1,3379.0,0.29601]
[1736288899289,0.44409458,3379.1,3379.0,0.29601]
[1736288899494,0.74009458,3379.1,3379.0,0.29601]
[1736288900396,0.44409458,3379.1,3379.0,0.29601]
[1736288900796,0.74009458,3379.1,3379.0,0.29601]
[1736288901296,0.44409458,3379.1,3378.7,2.5624]
[1736288901692,0.74010458,3379.1,3378.7,2.5624]
[1736288902199,0.74010458,3379.1,3378.9,0.29602]
[1736288902697,0.74010458,3379.1,3379.0,2.5782]
[1736288902894,0.44409458,3379.1,3379.0,5.26090744]
[1736288903096,4.63111559,3379.3,3379.0,4.96489744]
[1736288903296,4.63111559,3379.3,3379.2,0.296]
[1736288903491,5.77476634,3379.5,3379.1,2.3738]
[1736288903699,5.77476634,3379.5,3379.4,0.29598]
[1736288904695,0.44399928,3379.9,3379.8,0.29594]
[1736288905596,0.44399928,3379.9,3379.4,3.2078]
[1736288905791,0.29595,3379.8,3379.7,0.29595]
[1736288907195,0.73993928,3379.9,3379.8,0.29594]
[1736288907395,0.73993928,3379.9,3379.5,5.1029]
[1736288907396,0.29594,3379.9,3379.7,0.29595]
[1736288907598,0.29594,3379.9,3379.8,2.4261]
[1736288909393,0.29593,3379.9,3379.8,2.72204]
[1736288909799,0.73991818,3379.9,3379.8,2.72204]
[1736288910401,0.44398818,3379.9,3379.8,2.72204]
[1736288911306,3.2078,3380.4,3380.3,0.2959]
[1736288911503,0.2959,3380.3,3380.2,0.2959]
[1736288911803,3.5037,3380.4,3380.3,0.2959]
[1736288912603,0.2959,3380.3,3380.2,0.2959]
[1736288912804,3.50369,3380.4,3380.3,0.2959]
[1736288912993,3.2078,3380.4,3380.3,0.2959]
[1736288913401,8.98256634,3380.9,3379.9,2.38669744]
[1736288913600,5.77476634,3380.9,3380.3,0.73976]
[1736288913795,5.77476634,3380.9,3380.8,0.29586]
[1736288914205,7.96659744,3381.3,3380.5,3.1612]
[1736288914206,6.07060634,3381.0,3380.5,3.1612]
[1736288914404,6.07060634,3381.0,3380.9,0.29585]
[1736288915408,0.44385715,3381.0,3380.9,0.29585]
[1736288915817,0.29587,3380.7,3380.6,0.29586]
[1736288919803,2.60140828,3380.9,3380.8,0.29586]
[1736288920811,0.29585,3380.9,3380.8,0.29586]
[1736288921203,2.30555828,3381.0,3380.5,3.1612]
[1736288921399,0.29585,3380.9,3380.8,0.29585]
[1736288922405,0.29584,3381.0,3380.9,0.29584]
[1736288923210,0.29586,3380.9,3380.8,0.29585]
[1736288924713,0.29584,3381.0,3380.9,0.29584]
[1736288927110,2.30555828,3381.1,3380.5,2.4215]
[1736288927417,0.29587,3380.6,3380.5,2.71737]
[1736288928515,0.29587,3380.7,3380.6,0.29586]
[1736288930921,0.29587,3380.6,3380.5,2.71738]
[1736288934316,2.60142828,3380.6,3380.5,2.71738]
[1736288935620,2.30555828,3380.6,3380.5,2.71738]
[1736288935921,2.60142828,3380.6,3380.5,2.71738]
[1736288936713,2.30555828,3380.6,3380.5,2.71738]
[1736288936919,0.29587,3380.6,3380.5,2.71738]
[1736288937510,0.29587,3380.8,3380.7,0.29586]
[1736288937715,0.29587,3380.7,3380.6,0.29587]
[1736288937923,0.29586,3380.8,3380.7,0.29586]
[1736288939522,0.73973316,3380.8,3380.7,0.29586]
[1736288944022,5.35992404,3380.8,3380.7,0.29586]
[1736288945224,0.73973316,3380.8,3380.7,0.29586]
[1736288947930,11.45555887,3380.8,3380.7,0.29586]
[1736288949233,5.68079253,3380.8,3380.7,0.29586]
[1736288949433,5.38493253,3380.8,3380.7,0.29586]
[1736288949633,5.68079253,3380.8,3380.7,0.29586]
[1736288949834,5.38493253,3380.8,3380.7,0.29586]
[1736288951026,5.68079253,3380.8,3380.7,0.29586]
[1736288951333,8.28999253,3380.8,3380.7,0.29586]
[1736288951529,7.99413253,3380.8,3379.8,3.2078]
[1736288951736,0.29593,3380.0,3379.9,8.14194]
[1736288952030,3.2078,3380.2,3379.7,5.66545475]
[1736288952233,0.29594,3379.9,3379.7,5.66545475]
[1736288952429,3.6570085,3380.1,3379.7,5.66545475]
[1736288952732,0.29594,3379.9,3379.8,0.29594]
[1736288953032,0.29594,3379.8,3379.7,1.3463585]
[1736288953330,0.29594,3379.9,3379.6,2.63]
[1736288953532,0.29594,3379.9,3379.7,0.29594]
[1736288954031,5.38493253,3379.8,3379.7,0.29594]
[1736288954225,5.68087253,3379.8,3379.7,0.29594]
[1736288954426,5.38493253,3379.8,3379.7,0.29594]
[1736288954629,5.68087253,3379.8,3379.7,0.29594]
[1736288954822,5.38493253,3379.8,3379.7,0.29594]
[1736288956027,5.68088253,3379.8,3379.6,2.92595]
[1736288956228,5.68088253,3379.8,3379.7,0.29595]
[1736288956229,5.38493253,3379.8,3379.7,0.29595]
[1736288956428,0.29595,3379.7,3379.6,2.63]
[1736288956630,2.85025,3379.7,3379.6,2.63]
[1736288958139,8.23518253,3379.7,3379.6,2.63]
[1736288959137,8.23518253,3379.7,3379.5,0.29597]
[1736288959335,0.29597,3379.6,3379.4,3.2078]
[1736288959540,0.29597,3379.6,3379.5,0.29597]
[1736288959735,14.02206274,3379.7,3379.5,0.29597]
[1736288960037,0.29596,3379.6,3379.5,0.29597]
[1736288960337,14.02206274,3379.7,3379.5,0.29597]
[1736288960938,5.38493253,3379.6,3379.5,0.29597]
[1736288961746,5.38493253,3379.6,3379.4,3.2078]
[1736288962043,2.91187,3379.5,3379.4,3.2078]
[1736288963449,2.91187,3379.5,3379.4,3.50378]
[1736288963643,3.35574316,3379.5,3379.4,3.50378]
[1736288964546,3.05977316,3379.5,3379.4,3.50378]
[1736288964747,3.35574316,3379.5,3379.4,3.2078]
[1736288964937,3.35574316,3379.5,3379.4,3.50378]
[1736288965347,3.35574316,3379.5,3379.4,3.2078]
[1736288965547,3.35574316,3379.5,3379.3,0.29598]
[1736288966349,7.53330546,3379.5,3379.4,0.29598]
[1736288966648,7.23733546,3379.5,3379.4,0.29598]
[1736288967654,7.68135848,3379.5,3379.4,0.29598]
[1736288968648,7.97732848,3379.5,3379.4,0.29598]
[1736288969653,7.68135848,3379.5,3379.4,0.29598]
[1736288969850,7.97732848,3379.5,3379.4,0.29598]
[1736288970043,7.68135848,3379.5,3379.4,0.29598]
[1736288970646,5.06545848,3379.5,3379.4,0.29598]
[1736288972153,0.44402302,3379.5,3379.4,0.29598]
[1736288975254,0.73999302,3379.5,3379.4,0.29598]
[1736288975453,0.44402302,3379.5,3379.4,0.29598]
[1736288976059,0.73999302,3379.5,3379.4,0.29598]
[1736288976361,0.44402302,3379.5,3379.4,0.29598]
[1736288978562,0.73999302,3379.5,3379.4,0.29598]
[1736288980352,0.44402302,3379.5,3379.4,0.29598]
[1736288980558,5.06545848,3379.5,3379.4,0.29598]
[1736288982054,5.36142848,3379.5,3379.4,0.29598]
[1736288982262,5.06545848,3379.5,3379.4,0.29598]
[1736288982756,5.36142848,3379.5,3379.4,0.29598]
[1736288983159,5.06545848,3379.5,3379.4,0.29598]
[1736288983355,5.36142848,3379.5,3379.4,0.29598]
[1736288987167,0.73999302,3379.5,3379.4,0.29598]
[1736288991369,5.67293091,3379.5,3379.4,0.29598]
[1736288992868,11.45980112,3379.5,3379.3,0.29598]
[1736288993067,11.16383112,3379.5,3379.2,7.6126]
[1736288993269,0.29598,3379.4,3379.2,7.6126]
[1736288993464,0.296,3379.2,3378.9,0.29602]
[1736288993665,7.41156807,3379.3,3378.9,2.4292]
[1736288993869,0.29602,3379.0,3378.9,2.4292]
[1736288995676,5.67298091,3379.0,3378.9,2.4292]
[1736288999980,5.67298091,3379.0,3378.9,2.72522]
[1736289000484,5.67298091,3379.0,3378.9,2.4292]
[1736289000974,6.72416898,3379.0,3378.9,2.4292]
[1736289001175,6.72416898,3379.0,3378.7,2.5607]
[1736289001176,0.29603,3378.8,3378.7,2.5607]
[1736289001487,0.29605,3378.6,3378.5,2.5124]
[1736289002682,5.67301091,3378.6,3378.5,2.5124]
[1736289003580,6.42814898,3378.6,3378.2,2.508]
[1736289003883,0.2961,3378.0,3377.9,5.0243]
[1736289004478,0.2961,3378.0,3377.9,2.4092]
[1736289004678,2.5558,3378.0,3377.6,5.131]
[1736289004982,1.05118807,3377.7,3377.5,2.4379]
[1736289005290,0.29614,3377.6,3377.5,2.4379]
[1736289007283,11.45978351,3377.6,3377.5,2.4379]
[1736289008284,0.74016302,3377.6,3377.5,2.4379]
[1736289008584,0.29615,3377.4,3377.3,4.8463]
[1736289008782,5.7249,3377.5,3376.9,2.6414]
[1736289008982,0.29618,3377.1,3377.0,2.5089]
[1736289013681,0.2962,3376.9,3376.8,2.6275]
[1736289013887,0.29624,3376.5,3376.4,7.5146]
[1736289014589,0.29624,3376.5,3376.4,2.5826]
[1736289015695,0.29627,3376.2,3375.9,5.52148]
[1736289015885,0.29627,3376.2,3376.0,2.455]
[1736289016078,0.29627,3376.1,3376.0,2.455]
[1736289016279,0.2963,3375.8,3375.5,0.29632]
[1736289016478,5.60210594,3376.2,3375.6,5.2252]
[1736289016784,0.29632,3375.5,3375.4,3.2078]
[1736289017387,0.29634,3375.3,3375.1,2.6559]
[1736289017684,0.29634,3375.3,3375.2,2.4785]
[1736289017885,0.29635,3375.2,3375.1,2.6559]
[1736289018286,0.29637,3374.9,3374.8,3.2078]
[1736289018488,0.2964,3374.6,3374.5,2.6106]
[1736289018890,0.2964,3374.6,3374.3,2.5625]
[1736289018891,3.2078,3374.8,3374.3,2.5625]
[1736289019296,0.29642,3374.4,3374.3,2.5625]
[1736289019987,3.13529594,3374.7,3373.8,3.13818508]
[1736289020188,0.29643,3374.3,3373.9,0.29646]
[1736289020498,0.29644,3374.2,3373.8,5.31977]
[1736289020689,0.29643,3374.3,3373.9,0.29646]
[1736289020886,3.2078,3374.8,3374.0,5.60210594]
[1736289021189,0.23126698,3375.9,3374.0,5.60210594]
[1736289021190,5.51663932,3375.2,3374.4,3.2078]
[1736289021383,5.51663932,3375.2,3374.9,0.29637]
[1736289021788,5.51663932,3375.2,3374.8,0.29638]
[1736289021990,0.29636,3375.1,3374.8,0.29638]
[1736289022189,0.29636,3375.1,3374.9,0.29637]
[1736289022388,5.81298932,3375.2,3374.9,0.29637]
[1736289022790,3.50415,3375.2,3374.9,0.29637]
[1736289023193,3.50415,3375.2,3374.6,2.4127]
[1736289023194,3.2078,3375.2,3374.6,2.4127]
[1736289023594,3.2078,3375.2,3375.1,0.29636]
[1736289023792,3.2078,3375.2,3375.0,0.29636]
[1736289023996,3.2078,3375.2,3374.6,2.4127]
[1736289024184,0.29637,3375.0,3374.8,0.29638]
[1736289024391,0.29638,3374.9,3374.7,0.29639]
[1736289024590,0.29639,3374.7,3374.6,2.4127]
[1736289025796,4.9351,3375.1,3374.6,2.4127]
[1736289025996,3.2078,3374.8,3373.7,3.2078]
[1736289026186,0.29643,3374.3,3374.1,0.29644]
[1736289026496,3.2078,3374.8,3374.0,0.29645]
[1736289026497,0.29644,3374.2,3374.0,0.29645]
[1736289026691,0.29644,3374.2,3373.9,5.57096]
[1736289027092,2.39430594,3374.4,3373.9,5.2745]
[1736289027290,0.29643,3374.3,3373.9,5.57096]
[1736289027493,2.39430594,3374.7,3373.9,5.2745]
[1736289027692,0.29642,3374.5,3374.2,0.29643]
[1736289027898,0.29641,3374.6,3374.3,0.29643]
[1736289028196,3.2078,3374.8,3373.9,5.2745]
[1736289028400,0.29642,3374.4,3374.1,0.29644]
[1736289028588,0.29643,3374.4,3374.0,0.29645]